[Event "Czech Youth U14 Girls 2024"]
[Site "Kouty nad Desnou"]
[Date "2024.03.15"]
[Round "8.3"]
[White "Kozusnikova, Daniela"]
[Black "Kubatova, Beta"]
[Result "1/2-1/2"]
[ECO "B13"]
[WhiteElo "1809"]
[BlackElo "1666"]
[Annotator "NA COMBH"]
[PlyCount "82"]
[EventDate "2024.03.10"]
[EventType "swiss"]
[EventCountry "CZE"]
[SourceTitle "playchess.com"]
[Source "ChessBase"]
[SourceQuality "1"]
[TimeControl "40/5400+30:1800+30"]

1. e4 {[%emt 0:00:03]} c6 {[%emt 0:00:08]} 2. d4 {[%emt 0:00:08]} d5 {[%emt 0:00:00]} 3. exd5 {[%emt 0:00:09]} cxd5 {[%emt 0:00:17]} 4. Bd3 {[%emt 0:00:05]} Nc6 {[%emt 0:00:18]} 5. c3 {[%emt 0:00:06]} Nf6 {[%emt 0:00:32]} 6. h3 {[%emt 0:00:11]} e5 {[%emt 0:10:59]} 7. dxe5 {[%emt 0:00:11]} Nxe5 {[%emt 0:00:17]} 8. Nf3 {[%emt 0:00:10]} Nc6 {[%emt 0:07:49]} 9. O-O {[%emt 0:02:10]} Be7 {[%emt 0:00:49]} 10. Re1 {[%emt 0:02:04]} O-O {[%emt 0:02:29]} 11. Be3 {[%emt 0:07:52]} Qc7 {[%emt 0:11:46]} 12. Nbd2 {[%emt 0:02:10]} Bd7 {[%emt 0:06:21]} 13. Nb3 {[%emt 0:02:48]} Rfe8 {[%emt 0:06:09]} 14. Nbd4 {[%emt 0:05:44]} a6 {[%emt 0:04:38]} 15. a4 {[%emt 0:04:40]} Rad8 {[%emt 0:05:12]} 16. Bc2 {[%emt 0:03:26]} Na5 {[%emt 0:10:09]} 17. Qd3 {[%emt 0:17:29]} Nc4 {[%emt 0:05:26]} 18. Rab1 {[%emt 0:06:08]} Nxe3 {[%emt 0:02:05]} 19. Rxe3 {[%emt 0:00:50]} g6 {[%emt 0:06:00]} 20. Rbe1 {[%emt 0:06:27]} Bf8 {[%emt 0:05:13]} 21. Ne5 {[%emt 0:02:13]} Bg7 {[%emt 0:02:04]} 22. Nxd7 {[%emt 0:10:34]} Qxd7 {[%emt 0:00:20]} 23. Rxe8+ {[%emt 0:01:11]} Rxe8 {[%emt 0:01:19]} 24. Rd1 {[%emt 0:01:24]} Qc7 {[%emt 0:01:58]} 25. Bb3 {[%emt 0:01:36]} Rd8 {[%emt 0:02:21]} 26. Nc2 {[%emt 0:04:27]} a5 {[%emt 0:04:18]} 27. Ne3 {[%emt 0:03:57]} d4 {[%emt 0:00:53]} 28. cxd4 {[%emt 0:04:09]} Ne8 {[%emt 0:02:41]} 29. Qd2 {[%emt 0:02:44]} Rxd4 {[%emt 0:01:30]} 30. Qe2 {[%emt 0:03:33]} Rxd1+ {[%emt 0:00:28]} 31. Nxd1 {[%emt 0:00:08]} Qe5 {[%emt 0:00:35]} 32. Qxe5 {[%emt 0:03:20]} Bxe5 {[%emt 0:00:05]} 33. Bd5 {[%emt 0:00:27]} Nd6 {[%emt 0:00:47]} 34. b3 {[%emt 0:00:33]} b5 {[%emt 0:00:25]} 35. axb5 {[%emt 0:00:57]} Nxb5 {[%emt 0:00:07]} 36. Ne3 {[%emt 0:01:19]} Nc3 {[%emt 0:00:34]} 37. Bc4 {[%emt 0:00:20]} Bd6 {[%emt 0:00:33]} 38. Kf1 {[%emt 0:02:31]} a4 {[%emt 0:01:14]} 39. bxa4 {[%emt 0:00:40]} Nxa4 {[%emt 0:00:10]} 40. Ke2 {[%emt 0:00:34]} Nc5 {[%emt 0:00:33]} 41. f3 {[%emt 0:30:52]} Kg7 {[%emt 0:01:30]} 1/2-1/2

[Event "Czech Youth U14 Girls 2024"]
[Site "Kouty nad Desnou"]
[Date "2024.03.15"]
[Round "8.4"]
[White "Nova, Doubravka Anezka"]
[Black "Bartova, Hana"]
[Result "1/2-1/2"]
[ECO "C55"]
[WhiteElo "1718"]
[BlackElo "1667"]
[Annotator "NA COMBH"]
[PlyCount "134"]
[EventDate "2024.03.10"]
[EventType "swiss"]
[EventCountry "CZE"]
[SourceTitle "playchess.com"]
[Source "ChessBase"]
[SourceQuality "1"]
[TimeControl "40/5400+30:1800+30"]

1. e4 {[%emt 0:00:02]} e5 {[%emt 0:00:04]} 2. Bc4 {[%emt 0:00:04]} Nf6 {[%emt 0:00:26]} 3. d4 {[%emt 0:00:05]} exd4 {[%emt 0:01:31]} 4. Nf3 {[%emt 0:00:06]} Nc6 {[%emt 0:01:18]} 5. e5 {[%emt 0:00:09]} d5 {[%emt 0:00:16]} 6. Bb5 {[%emt 0:00:08]} Ne4 {[%emt 0:00:40]} 7. Nxd4 {[%emt 0:00:08]} Bd7 {[%emt 0:00:18]} 8. Bxc6 {[%emt 0:00:13]} bxc6 {[%emt 0:00:05]} 9. O-O {[%emt 0:00:32]} Bc5 {[%emt 0:00:26]} 10. f3 {[%emt 0:00:26]} Ng5 {[%emt 0:00:15]} 11. f4 {[%emt 0:00:10]} Ne4 {[%emt 0:00:08]} 12. Be3 {[%emt 0:00:17]} Qb8 {[%emt 0:02:14]} 13. Qc1 {[%emt 0:07:54]} O-O {[%emt 0:06:27]} 14. c3 {[%emt 0:02:37]} Bb6 {[%emt 0:06:39]} 15. Nd2 {[%emt 0:06:50]} Nxd2 {[%emt 0:08:16]} 16. Qxd2 {[%emt 0:00:29]} c5 {[%emt 0:02:43]} 17. Nb3 {[%emt 0:03:04]} c4 {[%emt 0:00:45]} 18. Nd4 {[%emt 0:01:05]} Bxd4 {[%emt 0:01:10]} 19. Bxd4 {[%emt 0:01:34]} Bf5 {[%emt 0:03:57]} 20. Qf2 {[%emt 0:06:41]} a5 {[%emt 0:02:37]} 21. Rad1 {[%emt 0:07:10]} Ra6 {[%emt 0:02:53]} 22. h3 {[%emt 0:02:58]} Rg6 {[%emt 0:03:39]} 23. Kh2 {[%emt 0:01:58]} h5 {[%emt 0:02:36]} 24. Rg1 {[%emt 0:02:06]} Qc8 {[%emt 0:06:30]} 25. Qh4 {[%emt 0:03:23]} Qe6 {[%emt 0:03:16]} 26. Rd2 {[%emt 0:06:00]} Rh6 {[%emt 0:12:19]} 27. Rgd1 {[%emt 0:06:22]} Be4 {[%emt 0:04:30]} 28. Be3 {[%emt 0:03:01]} Qf5 {[%emt 0:02:19]} 29. Rf2 {[%emt 0:07:01]} Re8 {[%emt 0:09:14]} 30. Bd4 {[%emt 0:03:11]} Kh7 {[%emt 0:03:57]} 31. Re1 {[%emt 0:02:40]} Bb1 {[%emt 0:02:12]} 32. Rf3 {[%emt 0:05:25]} Rb8 {[%emt 0:03:22]} 33. Qf2 {[%emt 0:02:32]} a4 {[%emt 0:01:46]} 34. a3 {[%emt 0:03:01]} Be4 {[%emt 0:00:23]} 35. Rg3 {[%emt 0:03:58]} Rg6 {[%emt 0:01:02]} 36. Rxg6 {[%emt 0:00:27]} Qxg6 {[%emt 0:00:10]} 37. Re3 {[%emt 0:01:15]} f6 {[%emt 0:02:48]} 38. Rg3 {[%emt 0:03:37]} Qf5 {[%emt 0:00:09]} 39. Re3 {[%emt 0:02:38]} Rb5 {[%emt 0:03:55]} 40. Re2 {[%emt 0:01:39]} c5 {[%emt 0:02:33]} 41. Bxc5 {[%emt 0:31:22]} fxe5 {[%emt 0:30:15]} 42. Bd6 {[%emt 0:03:22]} exf4 {[%emt 0:00:00]} 43. Qxf4 {[%emt 0:00:00]} Qxf4+ {[%emt 0:00:00]} 44. Bxf4 {[%emt 0:00:00]} Kg6 {[%emt 0:00:00]} 45. Be5 {[%emt 0:00:00]} Rb7 {[%emt 0:00:00]} 46. Rf2 {[%emt 0:00:00]} Re7 {[%emt 0:00:00]} 47. Bd4 {[%emt 0:00:00]} Kg5 {[%emt 0:00:00]} 48. Be3+ {[%emt 0:00:00]} Kg6 {[%emt 0:00:00]} 49. Bd4 {[%emt 0:00:00]} Re6 {[%emt 0:00:00]} 50. Kg3 {[%emt 0:00:00]} Bd3 {[%emt 0:00:00]} 51. Bc5 {[%emt 0:00:00]} Kg5 {[%emt 0:00:00]} 52. h4+ {[%emt 0:00:00]} Kh6 {[%emt 0:00:00]} 53. Bd4 {[%emt 0:00:00]} Kg6 {[%emt 0:00:26]} 54. Bc5 {[%emt 0:00:00]} Re4 {[%emt 0:00:53]} 55. Rf4 {[%emt 0:00:00]} Re2 {[%emt 0:01:47]} 56. Rf2 {[%emt 0:00:00]} Re4 {[%emt 0:01:04]} 57. Rf4 {[%emt 0:00:00]} Re6 {[%emt 0:00:21]} 58. Rf2 {[%emt 0:00:00]} Kh6 {[%emt 0:00:49]} 59. Bd4 {[%emt 0:00:00]} Rg6+ {[%emt 0:01:39]} 60. Kh3 {[%emt 0:00:00]} Re6 {[%emt 0:01:46]} 61. Kg3 {[%emt 0:00:00]} Kg6 {[%emt 0:00:16]} 62. Bc5 {[%emt 0:00:00]} Rc6 {[%emt 0:01:25]} 63. Bd4 {[%emt 0:00:00]} Kh6 {[%emt 0:00:16]} 64. Be3+ {[%emt 0:00:00]} Kh7 {[%emt 0:00:18]} 65. Bd4 {[%emt 0:00:00]} Re6 {[%emt 0:00:55]} 66. Rf7 {[%emt 0:00:00]} Rg6+ {[%emt 0:00:30]} 67. Kh3 {[%emt 0:00:00]} Be4 {[%emt 0:00:43]} 1/2-1/2

[Event "Czech Youth U14 Girls 2024"]
[Site "Kouty nad Desnou"]
[Date "2024.03.15"]
[Round "8.5"]
[White "Hladka, Leontyna"]
[Black "Kubatova, Ema"]
[Result "1/2-1/2"]
[ECO "B10"]
[WhiteElo "1683"]
[BlackElo "1580"]
[Annotator "NA COMBH"]
[PlyCount "87"]
[EventDate "2024.03.10"]
[EventType "swiss"]
[EventCountry "CZE"]
[SourceTitle "playchess.com"]
[Source "ChessBase"]
[SourceQuality "1"]
[TimeControl "40/5400+30:1800+30"]

1. e4 {[%emt 0:00:02]} c6 {[%emt 0:00:08]} 2. Nc3 {[%emt 0:00:09]} d5 {[%emt 0:00:07]} 3. Nf3 {[%emt 0:00:08]} Nf6 {[%emt 0:00:19]} 4. exd5 {[%emt 0:01:10]} cxd5 {[%emt 0:01:29]} 5. Bb5+ {[%emt 0:00:36]} Bd7 {[%emt 0:01:02]} 6. Bxd7+ {[%emt 0:03:47]} Nbxd7 {[%emt 0:05:58]} 7. d4 {[%emt 0:00:34]} e6 {[%emt 0:02:19]} 8. O-O {[%emt 0:02:28]} a6 {[%emt 0:04:10]} 9. a4 {[%emt 0:01:06]} Bd6 {[%emt 0:00:38]} 10. Bg5 {[%emt 0:03:19]} O-O {[%emt 0:00:41]} 11. Re1 {[%emt 0:01:44]} Be7 {[%emt 0:07:19]} 12. Bf4 {[%emt 0:05:34]} Rc8 {[%emt 0:04:44]} 13. Ne2 {[%emt 0:05:52]} Ne4 {[%emt 0:05:00]} 14. Ng3 {[%emt 0:01:13]} f5 {[%emt 0:04:26]} 15. Ne5 {[%emt 0:04:25]} Nxe5 {[%emt 0:06:11]} 16. Bxe5 {[%emt 0:00:21]} Bf6 {[%emt 0:02:49]} 17. Nxe4 {[%emt 0:11:43]} fxe4 {[%emt 0:03:13]} 18. Bxf6 {[%emt 0:03:54]} Qxf6 {[%emt 0:01:31]} 19. Qd2 {[%emt 0:00:51]} Rc4 {[%emt 0:06:12]} 20. c3 {[%emt 0:01:59]} Rc7 {[%emt 0:00:46]} 21. Rf1 {[%emt 0:03:05]} Rcf7 {[%emt 0:02:05]} 22. Rac1 {[%emt 0:02:21]} Rc8 {[%emt 0:08:55]} 23. Qe3 {[%emt 0:02:06]} Qg6 {[%emt 0:02:36]} 24. Kh1 {[%emt 0:02:44]} Qg4 {[%emt 0:03:03]} 25. h3 {[%emt 0:04:11]} Qg6 {[%emt 0:08:55]} 26. Rfe1 {[%emt 0:04:21]} Rcf8 {[%emt 0:01:39]} 27. Rf1 {[%emt 0:02:51]} Rf5 {[%emt 0:04:20]} 28. c4 {[%emt 0:06:58]} Rh5 {[%emt 0:01:36]} 29. Kh2 {[%emt 0:00:57]} h6 {[%emt 0:04:03]} 30. c5 {[%emt 0:06:05]} Qg4 {[%emt 0:04:42]} 31. Qg3 {[%emt 0:02:26]} Qxg3+ {[%emt 0:01:21]} 32. Kxg3 {[%emt 0:00:50]} Rc8 {[%emt 0:02:03]} 33. Kf4 {[%emt 0:01:28]} Rf5+ {[%emt 0:00:24]} 34. Ke3 {[%emt 0:00:26]} Kf7 {[%emt 0:00:44]} 35. Rc3 {[%emt 0:01:02]} Ke7 {[%emt 0:00:55]} 36. Rb3 {[%emt 0:01:47]} Rc7 {[%emt 0:01:01]} 37. f3 {[%emt 0:02:53]} exf3 {[%emt 0:00:30]} 38. Rxf3 {[%emt 0:00:20]} Rxf3+ {[%emt 0:00:22]} 39. Kxf3 {[%emt 0:00:06]} Kd7 {[%emt 0:00:57]} 40. Kf4 {[%emt 0:00:43]} Kc8 {[%emt 0:00:41]} 41. Rb6 {[%emt 0:31:51]} Rc6 {[%emt 0:30:33]} 42. Rxc6+ {[%emt 0:01:49]} bxc6 {[%emt 0:00:07]} 43. a5 {[%emt 0:02:32]} Kd7 {[%emt 0:00:00]} 44. h4 1/2-1/2

[Event "Czech Youth U14 Girls 2024"]
[Site "Kouty nad Desnou"]
[Date "2024.03.15"]
[Round "8.6"]
[White "Bouchalova, Kveta"]
[Black "Strazhnyk, Viktoriia"]
[Result "1/2-1/2"]
[ECO "C11"]
[WhiteElo "1627"]
[BlackElo "1570"]
[Annotator "NA COMBH"]
[PlyCount "96"]
[EventDate "2024.03.10"]
[EventType "swiss"]
[EventCountry "CZE"]
[SourceTitle "playchess.com"]
[Source "ChessBase"]
[SourceQuality "1"]
[TimeControl "40/5400+30:1800+30"]

1. e4 e6 {[%emt 0:00:09]} 2. d4 {[%emt 0:00:05]} d5 {[%emt 0:00:08]} 3. Nc3 {[%emt 0:00:03]} Nf6 {[%emt 0:00:12]} 4. e5 {[%emt 0:00:03]} Nfd7 {[%emt 0:00:00]} 5. f4 {[%emt 0:00:00]} c5 {[%emt 0:01:18]} 6. Nf3 {[%emt 0:00:19]} Nc6 {[%emt 0:02:22]} 7. Be3 a6 8. a3 {[%emt 0:01:33]} cxd4 {[%emt 0:02:38]} 9. Nxd4 {[%emt 0:08:51]} Nxd4 {[%emt 0:06:03]} 10. Bxd4 {[%emt 0:00:20]} b5 {[%emt 0:00:58]} 11. Be2 {[%emt 0:06:11]} Bb7 {[%emt 0:01:50]} 12. Qd2 {[%emt 0:08:28]} Rc8 {[%emt 0:03:21]} 13. O-O {[%emt 0:07:49]} Bc5 {[%emt 0:01:50]} 14. Bxc5 {[%emt 0:03:48]} Nxc5 {[%emt 0:00:07]} 15. Rad1 {[%emt 0:01:14]} O-O {[%emt 0:04:25]} 16. Bg4 {[%emt 0:05:18]} Qb6 {[%emt 0:03:24]} 17. Kh1 {[%emt 0:01:57]} Qc6 {[%emt 0:00:57]} 18. Bf3 {[%emt 0:06:44]} a5 {[%emt 0:08:38]} 19. Ne2 {[%emt 0:04:18]} Qc7 {[%emt 0:03:28]} 20. Nd4 {[%emt 0:01:57]} Ba6 {[%emt 0:18:33]} 21. Rfe1 {[%emt 0:05:16]} Na4 {[%emt 0:03:50]} 22. Rb1 {[%emt 0:04:36]} Nc5 {[%emt 0:03:01]} 23. f5 {[%emt 0:04:36]} Rfe8 {[%emt 0:08:46]} 24. f6 {[%emt 0:04:37]} gxf6 {[%emt 0:02:09]} 25. exf6 {[%emt 0:01:05]} Kh8 {[%emt 0:01:46]} 26. Qh6 {[%emt 0:01:23]} Rg8 {[%emt 0:00:50]} 27. Bh5 {[%emt 0:16:05]} Ne4 {[%emt 0:03:34]} 28. Re3 {[%emt 0:01:13]} Qe5 {[%emt 0:01:44]} 29. Bxf7 {[%emt 0:02:02]} Rg5 {[%emt 0:05:57]} 30. Qxh7+ {[%emt 0:03:21]} Kxh7 {[%emt 0:01:00]} 31. Rh3+ {[%emt 0:00:03]} Rh5 {[%emt 0:00:18]} 32. Rxh5+ {[%emt 0:00:03]} Qxh5 {[%emt 0:00:05]} 33. Bxh5 {[%emt 0:00:02]} Nxf6 {[%emt 0:00:36]} 34. Be2 {[%emt 0:00:29]} e5 {[%emt 0:01:29]} 35. Bxb5 {[%emt 0:02:16]} Bxb5 {[%emt 0:00:34]} 36. Nxb5 Rxc2 {[%emt 0:00:06]} 37. b4 {[%emt 0:02:01]} axb4 {[%emt 0:00:20]} 38. axb4 {[%emt 0:00:03]} d4 {[%emt 0:00:06]} 39. Na3 {[%emt 0:00:43]} Re2 {[%emt 0:01:25]} 40. Nc4 {[%emt 0:00:53]} d3 {[%emt 0:00:36]} 41. Kg1 {[%emt 0:07:45]} Nd5 {[%emt 0:13:31]} 42. Kf1 {[%emt 0:11:42]} Re4 {[%emt 0:03:43]} 43. Nd2 {[%emt 0:05:57]} Rf4+ {[%emt 0:03:44]} 44. Ke1 {[%emt 0:01:46]} Nxb4 {[%emt 0:01:00]} 45. g3 {[%emt 0:00:55]} Nc2+ {[%emt 0:11:29]} 46. Kd1 {[%emt 0:00:05]} Rf2 {[%emt 0:02:55]} 47. Rb3 Rf4 48. Rb1 Nb4 1/2-1/2

[Event "Czech Youth U14 Girls 2024"]
[Site "Kouty nad Desnou"]
[Date "2024.03.15"]
[Round "8.7"]
[White "Nguyen Nhat, Minh Thu"]
[Black "Barteckova, Valerie"]
[Result "1/2-1/2"]
[ECO "C01"]
[WhiteElo "1563"]
[BlackElo "1687"]
[Annotator "NA COMBH"]
[PlyCount "60"]
[EventDate "2024.03.10"]
[EventType "swiss"]
[EventCountry "CZE"]
[SourceTitle "playchess.com"]
[Source "ChessBase"]
[SourceQuality "1"]
[TimeControl "40/5400+30:1800+30"]

1. e4 {[%emt 0:00:02]} e6 {[%emt 0:00:12]} 2. d4 {[%emt 0:01:01]} d5 {[%emt 0:00:09]} 3. exd5 {[%emt 0:01:58]} exd5 {[%emt 0:00:10]} 4. Bd3 {[%emt 0:03:37]} Nf6 {[%emt 0:03:08]} 5. Nf3 {[%emt 0:10:54]} Bg4 {[%emt 0:04:21]} 6. O-O {[%emt 0:12:43]} Be7 {[%emt 0:01:04]} 7. Re1 {[%emt 0:04:49]} O-O {[%emt 0:00:24]} 8. Bg5 {[%emt 0:00:43]} Nc6 {[%emt 0:15:36]} 9. c3 {[%emt 0:05:42]} Qd7 {[%emt 0:10:25]} 10. Nbd2 {[%emt 0:14:28]} h6 {[%emt 0:03:49]} 11. Bh4 {[%emt 0:01:48]} Rfe8 {[%emt 0:02:49]} 12. Qc2 {[%emt 0:04:07]} Be6 {[%emt 0:08:28]} 13. Re2 {[%emt 0:12:14]} a6 {[%emt 0:05:59]} 14. a4 {[%emt 0:01:02]} Bg4 {[%emt 0:07:59]} 15. b4 {[%emt 0:07:16]} Be6 {[%emt 0:15:40]} 16. Rae1 {[%emt 0:05:59]} Kh8 {[%emt 0:08:01]} 17. Kh1 {[%emt 0:03:10]} Kg8 {[%emt 0:02:55]} 18. b5 {[%emt 0:01:59]} axb5 {[%emt 0:00:34]} 19. Bxb5 {[%emt 0:00:23]} Qd8 {[%emt 0:01:51]} 20. Ne5 {[%emt 0:03:22]} Bd7 {[%emt 0:00:40]} 21. Bxf6 {[%emt 0:02:18]} Bxf6 {[%emt 0:00:36]} 22. Nxd7 {[%emt 0:01:05]} Qxd7 {[%emt 0:00:18]} 23. Bxc6 {[%emt 0:00:14]} Qxc6 {[%emt 0:00:31]} 24. Rxe8+ {[%emt 0:00:21]} Rxe8 {[%emt 0:00:01]} 25. Rxe8+ {[%emt 0:00:01]} Qxe8 {[%emt 0:00:01]} 26. Qd1 Qc6 {[%emt 0:01:02]} 27. Nb1 {[%emt 0:00:51]} Qe8 {[%emt 0:00:44]} 28. g3 {[%emt 0:00:33]} Bg5 {[%emt 0:00:59]} 29. Kg1 {[%emt 0:01:04]} Qe6 {[%emt 0:00:49]} 30. Nd2 {[%emt 0:00:58]} Bxd2 {[%emt 0:01:32]} 1/2-1/2

[Event "Czech Youth U14 Girls 2024"]
[Site "Kouty nad Desnou"]
[Date "2024.03.15"]
[Round "8.8"]
[White "Archlebova, Eva"]
[Black "Mojzisova, Barbora"]
[Result "0-1"]
[ECO "C50"]
[WhiteElo "1438"]
[BlackElo "1623"]
[Annotator "NA COMBH"]
[PlyCount "52"]
[EventDate "2024.03.10"]
[EventType "swiss"]
[EventCountry "CZE"]
[SourceTitle "playchess.com"]
[Source "ChessBase"]
[SourceQuality "1"]
[TimeControl "40/5400+30:1800+30"]

1. e4 {[%emt 0:00:04]} e5 {[%emt 0:00:04]} 2. Nf3 {[%emt 0:00:26]} Nc6 {[%emt 0:00:04]} 3. Bc4 {[%emt 0:01:12]} Bc5 {[%emt 0:00:19]} 4. d3 {[%emt 0:00:12]} Nf6 {[%emt 0:00:35]} 5. Nc3 {[%emt 0:00:26]} h6 {[%emt 0:01:15]} 6. O-O {[%emt 0:00:59]} d6 {[%emt 0:00:39]} 7. h3 {[%emt 0:00:09]} Be6 {[%emt 0:00:42]} 8. Bb3 {[%emt 0:01:46]} Qd7 {[%emt 0:02:57]} 9. Bxe6 {[%emt 0:02:16]} fxe6 {[%emt 0:01:25]} 10. Bd2 {[%emt 0:01:53]} O-O-O {[%emt 0:02:09]} 11. a3 {[%emt 0:05:27]} g5 {[%emt 0:04:43]} 12. g4 {[%emt 0:01:29]} h5 {[%emt 0:09:10]} 13. Nh2 {[%emt 0:01:46]} hxg4 {[%emt 0:01:26]} 14. Nxg4 {[%emt 0:20:30]} Nxg4 {[%emt 0:06:19]} 15. Qxg4 {[%emt 0:00:14]} Rh4 {[%emt 0:01:05]} 16. Qd1 {[%emt 0:09:27]} Rxh3 {[%emt 0:02:55]} 17. Be3 {[%emt 0:10:11]} Qh7 {[%emt 0:02:58]} 18. Qg4 {[%emt 0:08:02]} Rf8 {[%emt 0:03:48]} 19. Kg2 {[%emt 0:18:04]} Rh2+ {[%emt 0:07:36]} 20. Kg3 {[%emt 0:00:18]} Rh4 {[%emt 0:08:01]} 21. Qxe6+ {[%emt 0:01:44]} Kb8 {[%emt 0:01:53]} 22. Nd5 {[%emt 0:07:12]} Nd8 {[%emt 0:01:19]} 23. Qe7 {[%emt 0:02:12]} Rh3+ {[%emt 0:00:25]} 24. Kg2 {[%emt 0:00:58]} Rh2+ {[%emt 0:00:12]} 25. Kg1 {[%emt 0:00:58]} Rh1+ {[%emt 0:00:11]} 26. Kg2 {[%emt 0:00:18]} Qh3# {[%emt 0:00:08]} 0-1

[Event "Czech Youth U14 Girls 2024"]
[Site "Kouty nad Desnou"]
[Date "2024.03.15"]
[Round "8.9"]
[White "Martinkovicova, Nela"]
[Black "Archlebova, Iva"]
[Result "1-0"]
[ECO "D30"]
[WhiteElo "1476"]
[BlackElo "1488"]
[Annotator "NA COMBH"]
[PlyCount "51"]
[EventDate "2024.03.10"]
[EventType "swiss"]
[EventCountry "CZE"]
[SourceTitle "playchess.com"]
[Source "ChessBase"]
[SourceQuality "1"]
[TimeControl "40/5400+30:1800+30"]

1. d4 {[%emt 0:00:13]} d5 2. c4 {[%emt 0:00:33]} e6 {[%emt 0:01:02]} 3. Bf4 {[%emt 0:01:49]} Nf6 {[%emt 0:04:07]} 4. e3 {[%emt 0:01:33]} c5 {[%emt 0:01:31]} 5. cxd5 {[%emt 0:02:23]} Nxd5 {[%emt 0:04:12]} 6. Bg3 {[%emt 0:02:57]} cxd4 {[%emt 0:10:31]} 7. Qxd4 {[%emt 0:03:19]} Nc6 {[%emt 0:02:46]} 8. Bb5 {[%emt 0:01:28]} Bd7 {[%emt 0:05:41]} 9. Bxc6 {[%emt 0:02:18]} Bxc6 {[%emt 0:01:29]} 10. Nf3 {[%emt 0:01:03]} Nb4 {[%emt 0:15:39]} 11. Qxd8+ {[%emt 0:04:27]} Rxd8 {[%emt 0:00:30]} 12. Na3 {[%emt 0:00:17]} Be7 {[%emt 0:08:31]} 13. O-O {[%emt 0:05:10]} O-O {[%emt 0:00:47]} 14. Ne5 {[%emt 0:03:46]} Bf6 {[%emt 0:06:00]} 15. Nxc6 {[%emt 0:03:29]} Nxc6 {[%emt 0:00:46]} 16. Rfb1 {[%emt 0:02:41]} Nb4 {[%emt 0:06:36]} 17. Kf1 {[%emt 0:05:07]} Rd7 {[%emt 0:08:32]} 18. Rd1 {[%emt 0:04:05]} Rfd8 {[%emt 0:03:20]} 19. Rxd7 {[%emt 0:01:04]} Rxd7 {[%emt 0:00:12]} 20. Nc4 {[%emt 0:01:28]} Nc6 {[%emt 0:04:53]} 21. Rb1 {[%emt 0:01:33]} a6 {[%emt 0:01:08]} 22. b3 {[%emt 0:01:57]} h6 {[%emt 0:02:24]} 23. Ke2 {[%emt 0:03:43]} Bc3 {[%emt 0:05:47]} 24. Rc1 {[%emt 0:01:49]} Bf6 {[%emt 0:03:48]} 25. Nb6 {[%emt 0:01:15]} Re7 {[%emt 0:01:20]} 26. Rd1 {[%emt 0:01:24]} 1-0

[Event "Czech Youth U14 Girls 2024"]
[Site "Kouty nad Desnou"]
[Date "2024.03.15"]
[Round "8.10"]
[White "Myronova, Sofia"]
[Black "Sochorova, Valentyna"]
[Result "0-1"]
[ECO "B01"]
[WhiteElo "1456"]
[BlackElo "1485"]
[Annotator "NA COMBH"]
[PlyCount "40"]
[EventDate "2024.03.10"]
[EventType "swiss"]
[EventCountry "CZE"]
[SourceTitle "playchess.com"]
[Source "ChessBase"]
[SourceQuality "1"]
[TimeControl "40/5400+30:1800+30"]

1. e4 d5 2. exd5 Qxd5 3. Nc3 Qa5 4. Nf3 Nf6 5. Bc4 Nc6 6. h3 Qh5 7. Be2 Bg4 8. Nh2 Bxe2 9. Qxe2 Qg6 10. d3 Nd4 11. Qf1 Nxc2+ 12. Kd1 Nxa1 13. Be3 O-O-O 14. Kd2 Ne4+ 15. Nxe4 Qxe4 16. f3 Qb4+ 17. Kc1 Qa4 18. Qe2 Qxa2 19. Rg1 Nb3+ 20. Kd1 Qb1+ 0-1

[Event "Czech Youth U14 Girls 2024"]
[Site "Kouty nad Desnou"]
[Date "2024.03.15"]
[Round "8.11"]
[White "Spetlova, Stella"]
[Black "Kratka, Tereza"]
[Result "1-0"]
[ECO "D10"]
[WhiteElo "1405"]
[BlackElo "1477"]
[Annotator "NA COMBH"]
[PlyCount "57"]
[EventDate "2024.03.10"]
[EventType "swiss"]
[EventCountry "CZE"]
[SourceTitle "playchess.com"]
[Source "ChessBase"]
[SourceQuality "1"]
[TimeControl "40/5400+30:1800+30"]

1. d4 {[%emt 0:00:02]} d5 {[%emt 0:00:12]} 2. c4 {[%emt 0:00:30]} c6 {[%emt 0:00:14]} 3. Nc3 {[%emt 0:01:48]} g6 {[%emt 0:00:44]} 4. cxd5 {[%emt 0:01:23]} cxd5 {[%emt 0:00:11]} 5. Bg5 {[%emt 0:01:25]} Bg7 {[%emt 0:01:05]} 6. e3 {[%emt 0:03:27]} Nf6 {[%emt 0:02:04]} 7. Bd3 {[%emt 0:01:36]} O-O {[%emt 0:01:35]} 8. Qc2 {[%emt 0:00:45]} a6 {[%emt 0:00:57]} 9. Nf3 {[%emt 0:04:16]} b5 {[%emt 0:01:25]} 10. a3 {[%emt 0:02:39]} Bb7 {[%emt 0:01:33]} 11. O-O {[%emt 0:02:56]} Nbd7 {[%emt 0:01:21]} 12. Rac1 {[%emt 0:02:52]} Rc8 {[%emt 0:00:29]} 13. Qe2 {[%emt 0:01:07]} Re8 {[%emt 0:03:50]} 14. Rfe1 {[%emt 0:01:47]} Nb6 {[%emt 0:02:58]} 15. b3 {[%emt 0:02:49]} Qd7 {[%emt 0:01:49]} 16. Qb2 {[%emt 0:00:58]} h5 {[%emt 0:06:22]} 17. Ne5 {[%emt 0:04:19]} Qe6 {[%emt 0:00:11]} 18. Bf4 {[%emt 0:01:19]} Nfd7 {[%emt 0:05:47]} 19. Nxd7 {[%emt 0:01:51]} Qxd7 {[%emt 0:00:30]} 20. h3 {[%emt 0:00:55]} Ra8 {[%emt 0:04:09]} 21. Rc2 {[%emt 0:06:23]} Bf8 {[%emt 0:01:15]} 22. Rec1 {[%emt 0:03:09]} Rec8 {[%emt 0:03:15]} 23. Ne2 {[%emt 0:04:09]} e6 {[%emt 0:00:54]} 24. Rc7 {[%emt 0:03:40]} Rxc7 {[%emt 0:03:22]} 25. Rxc7 {[%emt 0:00:16]} Qd8 {[%emt 0:00:10]} 26. Rxb7 {[%emt 0:01:39]} Bd6 {[%emt 0:00:56]} 27. Bxd6 {[%emt 0:00:34]} Qxd6 {[%emt 0:00:12]} 28. Qc2 {[%emt 0:01:20]} Rc8 {[%emt 0:00:38]} 29. Rxb6 {[%emt 0:00:23]} 1-0

[Event "Czech Youth U14 Girls 2024"]
[Site "Kouty nad Desnou"]
[Date "2024.03.15"]
[Round "8.12"]
[White "Vaclavkova, Klara"]
[Black "Kavanova, Valentyna"]
[Result "0-1"]
[ECO "E81"]
[WhiteElo "1486"]
[BlackElo "1539"]
[Annotator "NA COMBH"]
[PlyCount "36"]
[EventDate "2024.03.10"]
[EventType "swiss"]
[EventCountry "CZE"]
[SourceTitle "playchess.com"]
[Source "ChessBase"]
[SourceQuality "1"]
[TimeControl "40/5400+30:1800+30"]

1. d4 {[%emt 0:00:01]} Nf6 {[%emt 0:00:07]} 2. c4 {[%emt 0:00:07]} g6 {[%emt 0:00:05]} 3. Nc3 {[%emt 0:00:05]} Bg7 {[%emt 0:00:10]} 4. e4 {[%emt 0:00:05]} d6 {[%emt 0:00:05]} 5. f3 {[%emt 0:00:04]} O-O {[%emt 0:00:07]} 6. Be3 {[%emt 0:00:08]} Nbd7 {[%emt 0:00:16]} 7. Nge2 {[%emt 0:00:06]} c5 {[%emt 0:01:05]} 8. d5 {[%emt 0:01:21]} Ne5 {[%emt 0:01:42]} 9. Nc1 {[%emt 0:03:37]} e6 {[%emt 0:02:15]} 10. Nd3 {[%emt 0:03:45]} Nxc4 {[%emt 0:00:39]} 11. Qe2 {[%emt 0:03:05]} exd5 {[%emt 0:01:11]} 12. exd5 {[%emt 0:01:17]} Nxe3 {[%emt 0:00:30]} 13. Qxe3 {[%emt 0:01:12]} Re8 {[%emt 0:00:10]} 14. Ne4 {[%emt 0:00:20]} Bf5 {[%emt 0:02:13]} 15. Ndf2 {[%emt 0:04:21]} Qa5+ {[%emt 0:05:32]} 16. Kd1 {[%emt 0:01:01]} Nxd5 {[%emt 0:01:09]} 17. Qb3 {[%emt 0:02:36]} Nb4 {[%emt 0:07:31]} 18. a3 {[%emt 0:02:33]} Be6 {[%emt 0:01:45]} 0-1